Workbook

Sheet Metering opex forecast
A1: Evoenergy Electricity Distribution Deterimation 2019-24
A2: Metering opex model
A3: Forecast
M4: Base year | N4: Final year | O4: 2019-24 regulatory control period
D5: Source | E5: Unit | F5: Basis | G5: Timing | L5: FY ending June | M5: =2018 -> 2018 | N5: =M5+1 -> 2019 | O5: 2020 | P5: 2021 | Q5: 2022 | R5: 2023 | S5: 2024 | U5: Total FY19-24
B9: Calc | Operating expenditure
M11: Actual | N11: Forecast | O11: Forecast | P11: Forecast | Q11: Forecast | R11: Forecast | S11: Forecast
C12: Opex | D12: Source | E12: Unit | F12: Basis | M12: ="FY"&RIGHT(M$5,2) -> FY18 | N12: ="FY"&RIGHT(N$5,2) -> FY19 | O12: FY20 | P12: FY21 | Q12: FY22 | R12: FY23 | S12: FY24
C14: Base opex
C15: Total opex | E15: $ millions | F15: Nominal | G15: Mid-year | M15: =4.01*'Rate of change'!$M$26 -> 3.970491647
C19: Rate of change
C20: Real input price growth | D20: Rate of change | E20: per cent | F20: n/a | N20: ='Rate of change'!N91 -> 0.0009429968295 | O20: ='Rate of change'!O91 -> -0.001832618088 | P20: ='Rate of change'!P91 -> -0.0005201839625 | Q20: ='Rate of change'!Q91 -> 0.001954878546 | R20: ='Rate of change'!R91 -> 0.002757236125 | S20: ='Rate of change'!S91 -> 0.002361383053
C21: Output growth | D21: Rate of change | E21: per cent | F21: n/a | N21: ='Rate of change'!N92 -> -0.00645605301 | O21: ='Rate of change'!O92 -> -0.00645605301 | P21: ='Rate of change'!P92 -> -0.00645605301 | Q21: ='Rate of change'!Q92 -> -0.00645605301 | R21: ='Rate of change'!R92 -> -0.00645605301 | S21: ='Rate of change'!S92 -> -0.00645605301
C22: Productivity growth | D22: Rate of change | E22: per cent | F22: n/a | N22: ='Rate of change'!N93 -> 0 | O22: ='Rate of change'!O93 -> 0 | P22: ='Rate of change'!P93 -> 0 | Q22: ='Rate of change'!Q93 -> 0 | R22: ='Rate of change'!R93 -> 0 | S22: ='Rate of change'!S93 -> 0
C23: Rate of change | D23: Calculated | E23: per cent | F23: n/a | N23: =N20+N21-N22 -> -0.00551305618 | O23: =O20+O21-O22 -> -0.008288671097 | P23: -0.006976236972 | Q23: -0.004501174463 | R23: -0.003698816885 | S23: -0.004094669957
C26: Base opex(A) | D26: Calculated | F26: Real FY18 | G26: Year-end | M26: =SUM(M15:M16)/'Rate of change'!$M$26 -> 4.01 | N26: =M26*(1+N$23) -> 3.987892645 | O26: =N26*(1+O$23) -> 3.954838314 | P26: =O26*(1+P$23) -> 3.927248425 | Q26: 3.909571195 | R26: 3.895110407 | S26: 3.879161215 | U26: =SUM(O26:S26) -> 19.56592956
C27: Base opex(A) | D27: Calculated | F27: Real FY19 | G27: Year-end | M27: =M26*(1+'Rate of change'!$N$16) -> 4.0902 | N27: =N26*(1+'Rate of change'!$N$16) -> 4.067650498 | O27: =O26*(1+'Rate of change'!$N$16) -> 4.03393508 | P27: =P26*(1+'Rate of change'!$N$16) -> 4.005793393 | Q27: =Q26*(1+'Rate of change'!$N$16) -> 3.987762619 | R27: =R26*(1+'Rate of change'!$N$16) -> 3.973012615 | S27: =S26*(1+'Rate of change'!$N$16) -> 3.956744439 | U27: =SUM(O27:S27) -> 19.95724815
C31: Step changes
M33: ="FY"&RIGHT(M$5,2) -> FY18 | N33: ="FY"&RIGHT(N$5,2) -> FY19 | O33: ="FY"&RIGHT(O$5,2) -> FY20 | P33: FY21 | Q33: FY22 | R33: FY23 | S33: FY24
E34: $ millions | F34: Real FY18 | G34: Year-end | U34: =SUM(O34:S34) -> 0 | V34: =U34*(1+'Rate of change'!$N$16) -> 0
E35: $ millions | F35: Real FY18 | G35: Year-end | U35: =SUM(O35:S35) -> 0 | V35: =U35*(1+'Rate of change'!$N$16) -> 0
C37: Total step changes (B) | D37: Calculated | F37: Real FY18 | G37: Year-end | N37: =SUM(N34:N35) -> 0 | O37: 0 | P37: 0 | Q37: 0 | R37: 0 | S37: 0 | U37: =SUM(O37:S37) -> 0
C38: Total step changes (B) | D38: Calculated | F38: Real FY19 | G38: Year-end | N38: =N37*(1+'Rate of change'!$N$16) -> 0 | O38: =O37*(1+'Rate of change'!$N$16) -> 0 | P38: =P37*(1+'Rate of change'!$N$16) -> 0 | Q38: =Q37*(1+'Rate of change'!$N$16) -> 0 | R38: =R37*(1+'Rate of change'!$N$16) -> 0 | S38: =S37*(1+'Rate of change'!$N$16) -> 0 | U38: =SUM(O38:S38) -> 0 | V38: =SUM(V34:V35) -> 0
A40: PTRM Input => | C40: Total metering opex | D40: Calculated | F40: Real FY19 | G40: Year-end | N40: =N27+N38 -> 4.067650498 | O40: =O27+O38 -> 4.03393508 | P40: 4.005793393 | Q40: 3.987762619 | R40: 3.973012615 | S40: 3.956744439 | U40: =SUM(O40:S40) -> 19.95724815
C42: % change | N42: =N40/M27-1 -> -0.00551305618 | O42: =O40/N40-1 -> -0.008288671097 | P42: =P40/O40-1 -> -0.006976236972 | Q42: =Q40/P40-1 -> -0.004501174463 | R42: =R40/Q40-1 -> -0.003698816885 | S42: =S40/R40-1 -> -0.004094669957
C45: Total metering opex | D45: Calculated | F45: Nominal | N45: =N40*'Rate of change'!N28 -> 4.027574146 | O45: =O40*'Rate of change'!O28 -> 3.98443707 | P45: =P40*'Rate of change'!P28 -> 4.05555671 | Q45: =Q40*'Rate of change'!Q28 -> 4.13823449 | R45: =R40*'Rate of change'!R28 -> 4.226001117 | S45: =S40*'Rate of change'!S28 -> 4.313914463 | U45: =SUM(O45:S45) -> 20.71814385
C47: $real 2017/18 | N47: ="FY"&RIGHT(N$5,2) -> FY19 | O47: FY20 | P47: FY21 | Q47: FY22 | R47: FY23 | S47: FY24
C48: Base opex | F48: Real FY18 | G48: Year-end | N48: =$M$26 -> 4.01 | O48: =$M$26 -> 4.01 | P48: =$M$26 -> 4.01 | Q48: 4.01 | R48: 4.01 | S48: 4.01 | U48: =SUM(O48:S48) -> 20.05
C49: Real price growth | F49: Real FY18 | G49: Year-end | N49: ='Rate of change'!N116 -> 0.003781417286 | O49: ='Rate of change'!O116 -> -0.003572819409 | P49: ='Rate of change'!P116 -> -0.005653416436 | Q49: ='Rate of change'!Q116 -> 0.002170516536 | R49: ='Rate of change'!R116 -> 0.01327120955 | S49: ='Rate of change'!S116 -> 0.0228590405 | U49: =SUM(O49:S49) -> 0.02907453074
C50: Output growth | F50: Real FY18 | G50: Year-end | N50: ='Rate of change'!N117 -> -0.02588877257 | O50: ='Rate of change'!O117 -> -0.05158886638 | P50: ='Rate of change'!P117 -> -0.07709815862 | Q50: ='Rate of change'!Q117 -> -0.1025993219 | R50: ='Rate of change'!R117 -> -0.1281608029 | S50: ='Rate of change'!S117 -> -0.1536978254 | U50: -0.5131449752
C51: Productivity growth | F51: Real FY18 | G51: Year-end | N51: ='Rate of change'!N118 -> 0 | O51: ='Rate of change'!O118 -> 0 | P51: ='Rate of change'!P118 -> 0 | Q51: ='Rate of change'!Q118 -> 0 | R51: ='Rate of change'!R118 -> 0 | S51: ='Rate of change'!S118 -> 0 | U51: 0
C52: Step changes | F52: Real FY18 | G52: Year-end | N52: =N37 -> 0 | O52: 0 | P52: 0 | Q52: 0 | R52: 0 | S52: 0 | U52: 0
C53: Total metering opex | F53: Real FY18 | G53: Year-end | N53: =SUM(N48:N52) -> 3.987892645 | O53: 3.954838314 | P53: 3.927248425 | Q53: 3.909571195 | R53: 3.895110407 | S53: 3.879161215 | U53: =SUM(O53:S53) -> 19.56592956
C54: Total metering opex | F54: Real FY19 | G54: Year-end | N54: =N53*(1+'Rate of change'!$N$16) -> 4.067650498 | O54: =O53*(1+'Rate of change'!$N$16) -> 4.03393508 | P54: =P53*(1+'Rate of change'!$N$16) -> 4.005793393 | Q54: =Q53*(1+'Rate of change'!$N$16) -> 3.987762619 | R54: =R53*(1+'Rate of change'!$N$16) -> 3.973012615 | S54: =S53*(1+'Rate of change'!$N$16) -> 3.956744439 | U54: =SUM(O54:S54) -> 19.95724815
C56: $real 2017/18 | N56: FY16 | O56: FY17 | P56: FY18 | Q56: FY19 | R56: FY20 | S56: FY21 | U56: Total
C57: Base opex | F57: Real FY19 | G57: Year-end | N57: =N48*(1+'Rate of change'!$N$16) -> 4.0902 | O57: =O48*(1+'Rate of change'!$N$16) -> 4.0902 | P57: =P48*(1+'Rate of change'!$N$16) -> 4.0902 | Q57: =Q48*(1+'Rate of change'!$N$16) -> 4.0902 | R57: =R48*(1+'Rate of change'!$N$16) -> 4.0902 | S57: =S48*(1+'Rate of change'!$N$16) -> 4.0902 | U57: =SUM(O57:S57) -> 20.451
C58: Real price growth | F58: Real FY19 | G58: Year-end | N58: =N49*(1+'Rate of change'!$N$16) -> 0.003857045632 | O58: =O49*(1+'Rate of change'!$N$16) -> -0.003644275798 | P58: =P49*(1+'Rate of change'!$N$16) -> -0.005766484765 | Q58: =Q49*(1+'Rate of change'!$N$16) -> 0.002213926867 | R58: =R49*(1+'Rate of change'!$N$16) -> 0.01353663374 | S58: =S49*(1+'Rate of change'!$N$16) -> 0.02331622131 | U58: 0.02965602136
C59: Output growth | F59: Real FY19 | G59: Year-end | N59: =N50*(1+'Rate of change'!$N$16) -> -0.02640654802 | O59: =O50*(1+'Rate of change'!$N$16) -> -0.0526206437 | P59: =P50*(1+'Rate of change'!$N$16) -> -0.07864012179 | Q59: =Q50*(1+'Rate of change'!$N$16) -> -0.1046513083 | R59: =R50*(1+'Rate of change'!$N$16) -> -0.1307240189 | S59: =S50*(1+'Rate of change'!$N$16) -> -0.1567717819 | U59: -0.5234078747
C60: Productivity growth | F60: Real FY19 | G60: Year-end | N60: =N51*(1+'Rate of change'!$N$16) -> 0 | O60: =O51*(1+'Rate of change'!$N$16) -> 0 | P60: =P51*(1+'Rate of change'!$N$16) -> 0 | Q60: =Q51*(1+'Rate of change'!$N$16) -> 0 | R60: =R51*(1+'Rate of change'!$N$16) -> 0 | S60: =S51*(1+'Rate of change'!$N$16) -> 0 | U60: 0
C61: Step changes | F61: Real FY19 | G61: Year-end | N61: =N52*(1+'Rate of change'!$N$16) -> 0 | O61: =O52*(1+'Rate of change'!$N$16) -> 0 | P61: =P52*(1+'Rate of change'!$N$16) -> 0 | Q61: =Q52*(1+'Rate of change'!$N$16) -> 0 | R61: =R52*(1+'Rate of change'!$N$16) -> 0 | S61: =S52*(1+'Rate of change'!$N$16) -> 0 | U61: 0
C62: Total metering opex | F62: Real FY19 | G62: Year-end | N62: =N53*(1+'Rate of change'!$N$16) -> 4.067650498 | O62: =O53*(1+'Rate of change'!$N$16) -> 4.03393508 | P62: =P53*(1+'Rate of change'!$N$16) -> 4.005793393 | Q62: =Q53*(1+'Rate of change'!$N$16) -> 3.987762619 | R62: =R53*(1+'Rate of change'!$N$16) -> 3.973012615 | S62: =S53*(1+'Rate of change'!$N$16) -> 3.956744439 | U62: 19.95724815

Sheet Rate of change
C1: Evoenergy Electricity Distribution Deterimation 2019-24
C2: Metering opex model
C3: Rate of change | J3: 2014-19 regulatory period | O3: 2019-24 regulatory period
J4: Historical period | M4: Base year | N4: Forecast period
D5: Source | E5: Unit | F5: Basis | I5: FY ending | J5: 2015 | K5: =J5+1 -> 2016 | L5: 2017 | M5: 2018 | N5: 2019 | O5: 2020 | P5: 2021 | Q5: 2022 | R5: 2023 | S5: 2024
B9: Input | Inflation
C11: Dollar conversion to year-end | D11: Calculated | I11: 0.5
C14: Inflation | N14: Forecast
I15: FY14 | J15: ="FY"&RIGHT(J$5,2) -> FY15 | K15: ="FY"&RIGHT(K$5,2) -> FY16 | L15: FY17 | M15: FY18 | N15: FY19 | O15: FY20 | P15: FY21 | Q15: FY22 | R15: FY23 | S15: FY24
C16: Inflation Rate | D16: ABS / RBA / AAD | E16: Per cent | I16: 0.02449888641 | J16: 0.02487922705 | K16: 0.01508366722 | L16: 0.01276990945 | M16: 0.02 | N16: 0.02 | O16: 0.025 | P16: 0.025 | Q16: 0.025 | R16: 0.025 | S16: 0.025
C18: Source (actuals): ABS, all groups CPI inflation, weighted average for the eight capital cities - average of four quarters to December on the average of the four quarters to the previous December
C19: Source (forecast): Based on the AER's approach of calculating the geometric average based on the inflation forecasts for two years sourced from the latest available Reserve Bank of Australia’s (RBA’s) Statement of monetary policy and the mid-point of the RBA’s target inflation band for eight years.
C20: CPI indexes (real to nominal)
C22: Real 2014 | D22: Calculated | E22: factor | I22: =1/(1+I$16)^Dollar_Conversion_Factor -> 0.9879711314 | J22: =I22*(1+I$16)^(1-Dollar_Conversion_Factor)*(1+J$16)^Dollar_Conversion_Factor -> 1.012363189 | K22: 1.032579766 | L22: 1.046959605 | M22: 1.064107259 | N22: 1.085389405 | O22: 1.109807349 | P22: 1.137552533 | Q22: 1.165991346 | R22: 1.19514113 | S22: 1.225019658
C23: Real 2015 | D23: Calculated | E23: factor | I23: =J23/((1+J$16)^Dollar_Conversion_Factor*(1+I$16)^(1-Dollar_Conversion_Factor)) -> 0.9639878586 | J23: =1/(1+J$16)^Dollar_Conversion_Factor -> 0.9877877925 | K23: =J23*(1+J$16)^(1-Dollar_Conversion_Factor)*(1+K$16)^Dollar_Conversion_Factor -> 1.007513606 | L23: =K23*(1+K$16)^(1-Dollar_Conversion_Factor)*(1+L$16)^Dollar_Conversion_Factor -> 1.02154437 | M23: =L23*(1+L$16)^(1-Dollar_Conversion_Factor)*(1+M$16)^Dollar_Conversion_Factor -> 1.038275761 | N23: =M23*(1+M$16)^(1-Dollar_Conversion_Factor)*(1+N$16)^Dollar_Conversion_Factor -> 1.059041276 | O23: =N23*(1+N$16)^(1-Dollar_Conversion_Factor)*(1+O$16)^Dollar_Conversion_Factor -> 1.082866468 | P23: =O23*(1+O$16)^(1-Dollar_Conversion_Factor)*(1+P$16)^Dollar_Conversion_Factor -> 1.10993813 | Q23: =P23*(1+P$16)^(1-Dollar_Conversion_Factor)*(1+Q$16)^Dollar_Conversion_Factor -> 1.137686583 | R23: =Q23*(1+Q$16)^(1-Dollar_Conversion_Factor)*(1+R$16)^Dollar_Conversion_Factor -> 1.166128748 | S23: =R23*(1+R$16)^(1-Dollar_Conversion_Factor)*(1+S$16)^Dollar_Conversion_Factor -> 1.195281967
C24: Real 2016 | D24: Calculated | E24: factor | I24: =J24/((1+J$16)^Dollar_Conversion_Factor*(1+I$16)^(1-Dollar_Conversion_Factor)) -> 0.9639878586 | J24: =1/(1+J$16)^Dollar_Conversion_Factor -> 0.9877877925 | K24: =1/(1+K$16)^Dollar_Conversion_Factor -> 0.9925424268 | L24: =K24*(1+K$16)^(1-Dollar_Conversion_Factor)*(1+L$16)^Dollar_Conversion_Factor -> 1.0063647 | M24: 1.02284747 | N24: 1.04330442 | O24: 1.06677558 | P24: 1.09344497 | Q24: 1.120781094 | R24: 1.148800622 | S24: 1.177520637
C25: Real 2017 | D25: Calculated | E25: factor | I25: =J25/((1+J$16)^Dollar_Conversion_Factor*(1+I$16)^(1-Dollar_Conversion_Factor)) -> 0.9496634511 | J25: =K25/((1+K$16)^Dollar_Conversion_Factor*(1+J$16)^(1-Dollar_Conversion_Factor)) -> 0.9731097292 | K25: =1/(1+K$16)^Dollar_Conversion_Factor -> 0.9925424268 | L25: =1/(1+L$16)^Dollar_Conversion_Factor -> 0.9936755532 | M25: =L25*(1+L$16)^(1-Dollar_Conversion_Factor)*(1+M$16)^Dollar_Conversion_Factor -> 1.009950494 | N25: 1.030149504 | O25: 1.053324719 | P25: 1.079657837 | Q25: 1.106649283 | R25: 1.134315515 | S25: 1.162673403
C26: Real 2018 | D26: Calculated | E26: factor | I26: =J26/((1+J$16)^Dollar_Conversion_Factor*(1+I$16)^(1-Dollar_Conversion_Factor)) -> 0.9376892444 | J26: =K26/((1+K$16)^Dollar_Conversion_Factor*(1+J$16)^(1-Dollar_Conversion_Factor)) -> 0.9608398908 | K26: =L26/((1+L$16)^Dollar_Conversion_Factor*(1+K$16)^(1-Dollar_Conversion_Factor)) -> 0.9800275636 | L26: =1/(1+L$16)^Dollar_Conversion_Factor -> 0.9936755532 | M26: =1/(1+M$16)^Dollar_Conversion_Factor -> 0.990147543 | N26: =M26*(1+M$16)^(1-Dollar_Conversion_Factor)*(1+N$16)^Dollar_Conversion_Factor -> 1.009950494 | O26: 1.032671293 | P26: 1.058488076 | Q26: 1.084950278 | R26: 1.112074034 | S26: 1.139875885
C27: Real 2019 | D27: Calculated | E27: factor | I27: 0.9193031808 | J27: =K27/((1+K$16)^Dollar_Conversion_Factor*(1+J$16)^(1-Dollar_Conversion_Factor)) -> 0.941999893 | K27: =L27/((1+L$16)^Dollar_Conversion_Factor*(1+K$16)^(1-Dollar_Conversion_Factor)) -> 0.9608113368 | L27: =M27/((1+M$16)^Dollar_Conversion_Factor*(1+L$16)^(1-Dollar_Conversion_Factor)) -> 0.9741917188 | M27: =1/(1+M$16)^Dollar_Conversion_Factor -> 0.990147543 | N27: =1/(1+N$16)^Dollar_Conversion_Factor -> 0.990147543 | O27: =N27*(1+N$16)^(1-Dollar_Conversion_Factor)*(1+O$16)^Dollar_Conversion_Factor -> 1.012422837 | P27: 1.037733407 | Q27: 1.063676743 | R27: 1.090268661 | S27: 1.117525378
C28: Real 2020 | D28: Calculated | E28: factor | I28: 0.9012776282 | J28: =K28/((1+K$16)^Dollar_Conversion_Factor*(1+J$16)^(1-Dollar_Conversion_Factor)) -> 0.9235293068 | K28: =L28/((1+L$16)^Dollar_Conversion_Factor*(1+K$16)^(1-Dollar_Conversion_Factor)) -> 0.9419718988 | L28: =M28/((1+M$16)^Dollar_Conversion_Factor*(1+L$16)^(1-Dollar_Conversion_Factor)) -> 0.9550899204 | M28: =N28/((1+N$16)^Dollar_Conversion_Factor*(1+M$16)^(1-Dollar_Conversion_Factor)) -> 0.9707328853 | N28: =1/(1+N$16)^Dollar_Conversion_Factor -> 0.990147543 | O28: =1/(1+O$16)^Dollar_Conversion_Factor -> 0.9877295966 | P28: =O28*(1+O$16)^(1-Dollar_Conversion_Factor)*(1+P$16)^Dollar_Conversion_Factor -> 1.012422837 | Q28: =P28*(1+P$16)^(1-Dollar_Conversion_Factor)*(1+Q$16)^Dollar_Conversion_Factor -> 1.037733407 | R28: =Q28*(1+Q$16)^(1-Dollar_Conversion_Factor)*(1+R$16)^Dollar_Conversion_Factor -> 1.063676743 | S28: =R28*(1+R$16)^(1-Dollar_Conversion_Factor)*(1+S$16)^Dollar_Conversion_Factor -> 1.090268661
B31: Real price change
E34: Unit | J34: Labour | K34: Other | L34: Total | M34: Check
C36: Benchmark labour / non-labour weights | E36: Per cent | J36: ='[22]Rate of change'!J$36 -> 0.597 | K36: =1-J36 -> 0.403 | L36: =SUM(J36:K36) -> 1 | M36: =IF(ROUND(($L36-1),7)=0,"Ok","Check") -> Ok
D40: Source | E40: Unit | M40: ="FY"&RIGHT(M$5,2) -> FY18 | N40: FY19 | O40: FY20 | P40: FY21 | Q40: FY22 | R40: FY23 | S40: FY24
C42: Annual price growth forecast
C43: EGWWS labour | D43: External | E43: Per cent | M43: ='ACT labour price forecast'!I30/100 -> 0.004516926683 | N43: ='ACT labour price forecast'!J30/100 -> 0.001579559178 | O43: ='ACT labour price forecast'!K30/100 -> -0.003064870895 | P43: ='ACT labour price forecast'!L30/100 -> -0.000872630273 | Q43: ='ACT labour price forecast'!M30/100 -> 0.003282254415 | R43: ='ACT labour price forecast'!N30/100 -> 0.004614273045 | S43: ='ACT labour price forecast'!O30/100 -> 0.003933656452
C44: Non-labour | D44: External | E44: Per cent | M44: 0 | N44: 0 | O44: 0 | P44: 0 | Q44: 0 | R44: 0 | S44: 0
C46: Cumulative factor
C47: =$C$43 -> EGWWS labour | D47: Calculated | E47: Factor | M47: 1 | N47: =M47*(1+N43) -> 1.001579559 | O47: 0.9985098471 | P47: 0.9976385172 | Q47: 1.000913021 | R47: 1.005531507 | S47: 1.009486922
C48: =$C$44 -> Non-labour | D48: Calculated | E48: Factor | M48: 1 | N48: 1 | O48: 1 | P48: 1 | Q48: 1 | R48: 1 | S48: 1
C53: Opex real price factor | D53: Calculated | E53: Factor | M53: =SUM($J$36*M47)+($K$36*M48) -> 1 | N53: 1.000942997 | O53: 0.9991103787 | P53: 0.9985901948 | Q53: 1.000545073 | R53: 1.003302309 | S53: 1.005663693
B57: Opex productivity and output growth
C59: Partial factor productivity | D59: Source | E59: Unit | F59: Basis | M59: ="FY"&RIGHT(M$5,2) -> FY18 | N59: FY19 | O59: FY20 | P59: FY21 | Q59: FY22 | R59: FY23 | S59: FY24
C61: Partial factor productivity | E61: Per cent | F61: n/a | M61: 0 | N61: 0 | O61: 0 | P61: 0 | Q61: 0 | R61: 0 | S61: 0
E62: Per cent
E63: Per cent
C66: Output growth factor weights
C68: BY variable costs | E68: Per cent | I68: 0.6423718673
D72: Source | E72: Unit | F72: Basis | M72: ="FY"&RIGHT(M$5,2) -> FY18 | N72: FY19 | O72: FY20 | P72: FY21 | Q72: FY22 | R72: FY23 | S72: FY24
B73: meter numbers
C74: Forecasts
C75: meter numbers | D75: Demand model | E75: Number | F75: n/a | K75: 0.01 | L75: 205715 | M75: 205715 | N75: =M75*(1-$K$75) -> 203657.85 | O75: =N75*(1-$K$75) -> 201621.2715 | P75: 199605.0588 | Q75: 197609.0082 | R75: 195632.9181 | S75: 193676.5889
C76: Incremental meter numbers | D76: Calculated | E76: Number | F76: n/a | M76: =M75-L75 -> 0 | N76: =N75-M75 -> -2057.15 | O76: =O75-N75 -> -2036.5785 | P76: =P75-O75 -> -2016.212715 | Q76: =Q75-P75 -> -1996.050588 | R76: =R75-Q75 -> -1976.090082 | S76: =S75-R75 -> -1956.329181
C77: Meter growth rate | M77: =M75/L75-1 -> 0 | N77: =N75/M75-1 -> -0.01 | O77: =O75/N75-1 -> -0.01 | P77: =P75/O75-1 -> -0.01 | Q77: =Q75/P75-1 -> -0.01 | R77: =R75/Q75-1 -> -0.01 | S77: =S75/R75-1 -> -0.01
C81: Output growth rates
C82: Meter numbers | D82: Calculated | E82: Per cent | F82: n/a | M82: =LN(M75)-LN(L75) -> 0 | N82: -0.01005033585 | O82: -0.01005033585 | P82: -0.01005033585 | Q82: -0.01005033585 | R82: -0.01005033585 | S82: -0.01005033585
C84: Output growth | D84: Calculated | E84: Per cent | F84: n/a | N84: =SUMPRODUCT(N82:N82,$I$68) -> -0.00645605301 | O84: =SUMPRODUCT(O82:O82,$I$68) -> -0.00645605301 | P84: -0.00645605301 | Q84: -0.00645605301 | R84: -0.00645605301 | S84: -0.00645605301
C88: Output growth ($) | D88: Calculated | E88: Dollars | F88: n/a
C90: Rate of change
C91: Real price change | E91: Per cent | F91: n/a | N91: =N53-M53/1 -> 0.0009429968295 | O91: -0.001832618088 | P91: -0.0005201839625 | Q91: 0.001954878546 | R91: 0.002757236125 | S91: 0.002361383053
C92: Output growth | E92: Per cent | F92: n/a | N92: =N84 -> -0.00645605301 | O92: =O84 -> -0.00645605301 | P92: -0.00645605301 | Q92: -0.00645605301 | R92: -0.00645605301 | S92: -0.00645605301
C93: Productivity growth | E93: Per cent | F93: n/a | N93: =M61 -> 0 | O93: 0 | P93: 0 | Q93: 0 | R93: 0 | S93: 0
C94: Rate of change | D94: Calculated | E94: Per cent | F94: n/a | N94: =N91+N92-N93 -> -0.00551305618 | O94: =O91+O92-O93 -> -0.008288671097 | P94: -0.006976236972 | Q94: -0.004501174463 | R94: -0.003698816885 | S94: -0.004094669957
B97: Rate of change workings
C101: Rate of change component | M101: FY18 | N101: FY19 | O101: FY20 | P101: FY21 | Q101: FY22 | R101: FY23 | S101: FY24
C102: Real input cost escalation | M102: ='Metering opex forecast '!$M$26 -> 4.01 | N102: =M102*(1+N91) -> 4.013781417 | O102: =N102*(1+O91) -> 4.006425689 | P102: =O102*(1+P91) -> 4.00434161 | Q102: =P102*(1+Q91) -> 4.012169612 | R102: 4.023232111 | S102: =R102*(1+S91) -> 4.032732503 | T102: =SUM(O102:S102) -> 20.07890153
C103: Output growth | M103: ='Metering opex forecast '!$M$26 -> 4.01 | N103: =M103*(1+N92) -> 3.984111227 | O103: =N103*(1+O92) -> 3.958389594 | P103: 3.932834021 | Q103: 3.907443436 | R103: 3.882216774 | S103: 3.857152977 | T103: 19.5380368
C104: Opex partial factor productivity | M104: ='Metering opex forecast '!$M$26 -> 4.01 | N104: =M104*(1+N93) -> 4.01 | O104: =N104*(1+O93) -> 4.01 | P104: 4.01 | Q104: 4.01 | R104: 4.01 | S104: 4.01 | T104: 20.05
C105: Rate of change | M105: ='Metering opex forecast '!$M$26 -> 4.01 | N105: =M105*(1+N94) -> 3.987892645 | O105: =N105*(1+O94) -> 3.954838314 | P105: =O105*(1+P94) -> 3.927248425 | Q105: =P105*(1+Q94) -> 3.909571195 | R105: =Q105*(1+R94) -> 3.895110407 | S105: =R105*(1+S94) -> 3.879161215 | T105: 19.56592956
C107: Real input cost escalation | N107: =N102-$M102 -> 0.003781417286 | O107: =O102-$M102 -> -0.003574311139 | P107: =P102-$M102 -> -0.005658389529 | Q107: 0.002169611977 | R107: 0.01323211097 | S107: 0.02273250309 | T107: =SUM(O107:S107) -> 0.02890152537
C108: Output growth | N108: =N103-$M103 -> -0.02588877257 | O108: -0.05161040585 | P108: =P103-$M103 -> -0.0771659789 | Q108: -0.1025565638 | R108: -0.1277832258 | S108: -0.1528470231 | T108: -0.5119631974
C109: Opex partial factor productivity | N109: =N104-$M104 -> 0 | O109: 0 | P109: 0 | Q109: 0 | R109: 0 | S109: 0 | T109: 0
C110: Rate of change - additive | N110: =SUM(N107:N109) -> -0.02210735528 | O110: =SUM(O107:O109) -> -0.05518471699 | P110: -0.08282436843 | Q110: -0.1003869518 | R110: -0.1145511148 | S110: -0.13011452 | T110: =SUM(O110:S110) -> -0.483061672
C112: Rate of change - multiplicative | N112: =N105-$M$105 -> -0.02210735528 | O112: =O105-$M$105 -> -0.05516168579 | P112: =P105-$M$105 -> -0.08275157505 | Q112: -0.1004288054 | R112: -0.1148895933 | S112: -0.1308387849 | T112: =SUM(O112:S112) -> -0.4840704444
C116: Real input cost escalation | N116: =N107/N$110*N$112 -> 0.003781417286 | O116: -0.003572819409 | P116: -0.005653416436 | Q116: =Q107/Q$110*Q$112 -> 0.002170516536 | R116: 0.01327120955 | S116: 0.0228590405 | T116: =SUM(O116:S116) -> 0.02907453074
C117: Output growth | N117: -0.02588877257 | O117: -0.05158886638 | P117: -0.07709815862 | Q117: -0.1025993219 | R117: -0.1281608029 | S117: -0.1536978254 | T117: =SUM(O117:S117) -> -0.5131449752
C118: Opex partial factor productivity | N118: 0 | O118: 0 | P118: 0 | Q118: 0 | R118: 0 | S118: 0 | T118: =SUM(O118:S118) -> 0
C119: Rate of change - additive | N119: =SUM(N116:N118) -> -0.02210735528 | O119: -0.05516168579 | P119: =SUM(P116:P118) -> -0.08275157505 | Q119: -0.1004288054 | R119: -0.1148895933 | S119: -0.1308387849 | T119: =SUM(O119:S119) -> -0.4840704444

Sheet ACT labour price forecast
B1: Expected Labour Price Changes for Australia and the Australian Capital Territory
B2: (per cent change, year average, year ended June)
C4: 2012 | D4: 2013 | E4: 2014 | F4: 2015 | G4: 2016 | H4: 2017 | I4: 2018 | J4: 2019 | K4: 2020 | L4: 2021 | M4: 2022 | N4: 2023 | O4: 2024 | P4: Average (g)
B5: NOMINAL LABOUR PRICE CHANGES | C5: Actuals | I5: Forecasts | K5: Next Regulatory Period
B7: Australian Capital Territory Wage Inflation
B8: (1) All Industries
B9: Average Weekly Earnings (a) | C9: 5.701639145 | D9: 5.285096944 | E9: -3.680396644 | F9: 1.088893288 | G9: 1.912782348 | H9: 0.482260677 | I9: 2.572171551 | J9: 3.277012922 | K9: 3.099991397 | L9: 3.27014516 | M9: 4.058612148 | N9: 4.269658733 | O9: 3.729881438 | P9: =AVERAGE(K9:O9) -> 3.685657775
B10: Average Weekly Ordinary Time Earnings (b) | C10: 5.291094733 | D10: 6.608226568 | E10: 0.7484714316 | F10: 1.591952047 | G10: 1.124124537 | H10: 2.11049354 | I10: 2.972171551 | J10: 3.577012922 | K10: 3.199991397 | L10: 3.47014516 | M10: 4.358612148 | N10: 4.669658733 | O10: 3.979881438 | P10: =AVERAGE(K10:O10) -> 3.935657775
B11: Wage Price Index (c) | C11: 3.31002331 | D11: 3.700361011 | E11: 2.371627502 | F11: 1.74282678 | G11: 1.733862544 | H11: 1.848049281 | I11: 2.372171551 | J11: 2.777012922 | K11: 2.599991397 | L11: 3.07014516 | M11: 3.558612148 | N11: 3.769658733 | O11: 3.279881438 | P11: =AVERAGE(K11:O11) -> 3.255657775
B12: (2) Electricity, Gas, Water and Waste Services Wages
B13: Wage Price Index (c) | C13: 3.4 | D13: 4 | E13: 3.1 | F13: 2.6 | G13: 2.3 | H13: 2.1 | I13: 2.413768977 | J13: 2.399924293 | K13: 2.193512911 | L13: 2.412736973 | M13: 2.828225442 | N13: 2.961427304 | O13: 2.893365645 | P13: =AVERAGE(K13:O13) -> 2.657853655
B14: Australian Wage Inflation (d)
B15: (1) All Industries
B16: Average Weekly Earnings | C16: 4.143446208 | D16: 4.304945648 | E16: 2.730807279 | F16: 1.317911049 | G16: 1.700834392 | H16: 1.624576198 | I16: 2.455346992 | J16: 2.765667281 | K16: 2.959088404 | L16: 3.164240462 | M16: 3.420013222 | N16: 3.637870549 | O16: 3.817746947 | P16: =AVERAGE(K16:O16) -> 3.399791917
B17: Average Weekly Ordinary Time Earnings | C17: 4.333333333 | D17: 4.589615679 | E17: 2.994846328 | F17: 2.429929235 | G17: 1.877000186 | H17: 2.045192012 | I17: 3.382824838 | J17: 3.421348157 | K17: 3.283697059 | L17: 3.875593469 | M17: 4.540782502 | N17: 4.434081203 | O17: 3.802489273 | P17: =AVERAGE(K17:O17) -> 3.987328701
B18: Wage Price Index | C18: 3.644859813 | D18: 3.313796213 | E18: 2.618372245 | F18: 2.402721667 | G18: 2.117940199 | H18: 1.952013013 | I18: 2.400840455 | J18: 2.569295163 | K18: 2.594136088 | L18: 3.27014516 | M18: 3.708612148 | N18: 3.769658733 | O18: 3.379881438 | P18: =AVERAGE(K18:O18) -> 3.344486713
B19: (2) Electricity, Gas, Water and Waste Services Wages
B20: Wage Price Index | C20: 3.495860166 | D20: 4.222222222 | E20: 3.162260128 | F20: 2.849473467 | G20: 2.409154788 | H20: 2.195647912 | I20: 2.639235142 | J20: 3.187793675 | K20: 3.278532816 | L20: 3.767548668 | M20: 4.136624612 | N20: 4.228125429 | O20: 3.932765011 | P20: =AVERAGE(K20:O20) -> 3.868719307
B22: Consumer Price Index (headline) (e) | C22: 2.302379125 | D22: 2.275568892 | E22: 2.71393643 | F22: 1.713877648 | G22: 1.38076293 | H22: 1.708217913 | I22: 1.962076309 | J22: 2.241968375 | K22: 2.5 | L22: 2.5 | M22: 2.5 | N22: 2.5 | O22: 2.5 | P22: 2.338447056
B23: REAL LABOUR PRICE CHANGES (f)
B24: Australian Capital Territory Wage Inflation
B25: (1) All Industries
B26: Average Weekly Earnings | C26: =C9-C22 -> 3.39926002 | D26: 3.009528052 | E26: -6.394333074 | F26: -0.6249843597 | G26: 0.5320194175 | H26: -1.225957236 | I26: 0.6100952422 | J26: 1.035044547 | K26: 0.5999913974 | L26: 0.7701451596 | M26: 1.558612148 | N26: 1.769658733 | O26: 1.229881438 | P26: 1.347210719
B27: Average Weekly Ordinary Time Earnings | C27: =C10-C22 -> 2.988715607 | D27: 4.332657676 | E27: -1.965464999 | F27: -0.1219256011 | G27: -0.2566383935 | H27: 0.4022756265 | I27: 1.010095242 | J27: 1.335044547 | K27: 0.6999913974 | L27: 0.9701451596 | M27: 1.858612148 | N27: 2.169658733 | O27: 1.479881438 | P27: 1.597210719
B28: Wage Price Index | C28: =C11-C22 -> 1.007644185 | D28: 1.424792119 | E28: -0.3423089281 | F28: 0.02894913184 | G28: 0.3530996144 | H28: 0.1398313681 | I28: 0.4100952422 | J28: 0.5350445474 | K28: 0.09999139737 | L28: 0.5701451596 | M28: 1.058612148 | N28: 1.269658733 | O28: 0.7798814377 | P28: =P11-P22 -> 0.917210719
B29: (2) Electricity, Gas, Water and Waste Services Wages
B30: Wage Price Index | C30: =C13-C22 -> 1.097620875 | D30: 1.724431108 | E30: 0.3860635697 | F30: 0.8861223518 | G30: 0.91923707 | H30: 0.3917820868 | I30: =I13-I22 -> 0.4516926683 | J30: 0.1579559178 | K30: =K13-K22 -> -0.3064870895 | L30: -0.0872630273 | M30: 0.3282254415 | N30: 0.4614273045 | O30: 0.3933656452 | P30: 0.3194065989
B31: Australian Wage Inflation
B32: (1) All Industries
B33: Average Weekly Earnings | C33: =C16-C22 -> 1.841067083 | D33: 2.029376756 | E33: 0.01687084877 | F33: -0.3959665988 | G33: 0.3200714624 | H33: -0.08364171569 | I33: 0.4932706829 | J33: 0.5236989055 | K33: 0.4590884039 | L33: 0.6642404621 | M33: 0.9200132224 | N33: 1.137870549 | O33: 1.317746947 | P33: 1.061344861
B34: Average Weekly Ordinary Time Earnings | C34: =C17-C22 -> 2.030954208 | D34: 2.314046787 | E34: 0.2809098974 | F34: 0.7160515873 | G34: 0.4962372562 | H34: 0.3369740988 | I34: 1.420748529 | J34: 1.179379782 | K34: 0.7836970594 | L34: 1.375593469 | M34: 2.040782502 | N34: 1.934081203 | O34: 1.302489273 | P34: 1.648881645
B35: Wage Price Index | C35: =C18-C22 -> 1.342480688 | D35: 1.038227321 | E35: -0.09556418506 | F35: 0.6888440188 | G35: 0.7371772693 | H35: 0.2437951002 | I35: 0.4387641463 | J35: 0.3273267879 | K35: 0.09413608776 | L35: 0.7701451596 | M35: 1.208612148 | N35: 1.269658733 | O35: 0.8798814377 | P35: 1.006039657
B36: (2) Electricity, Gas, Water and Waste Services Wages
B37: Wage Price Index | C37: =C20-C22 -> 1.19348104 | D37: =D20-D22 -> 1.94665333 | E37: 0.4483236976 | F37: 1.135595819 | G37: =G20-G22 -> 1.028391858 | H37: 0.487429999 | I37: 0.6771588334 | J37: 0.9458253001 | K37: 0.7785328162 | L37: 1.267548668 | M37: 1.636624612 | N37: 1.728125429 | O37: 1.432765011 | P37: =P20-P22 -> 1.530272251
P39: Source: BIS Oxford Economics, Department of Employment, RBA, ABS Data
B41: (a) Average Weekly Earnings (AWE) for all employees (i.e. for both full-time and part-time employees). Includes overtime earnings but excludes bonus payments.
B42: It is derived by dividing weekly earnings of all adult employees by the number of employees. It is not a strict wage inflation measure but a long historical series allows for the calculation of how employee
B43: earnings has changed over time.
B44: (b) Average Weekly Ordinary Time Earnings for full-time adult persons. Excludes over-time earnings but includes bonuses.
B45: (c) Wage price index for total hourly rates of pay excluding bonuses. This is the only series published by the ABS at the state by industry level. It measures quarterly change in combined ordinary time and overtime hourly rates of pay.
B46: (d) Australian wages provided for comparison.
B47: (e) Reserve Bank of Australia forecasts to December 2019. Beyond that, we have used the mid-point of the Reserve Bank's 2 to 3 per cent inflation target range as preferred by the AER in their recent revenue determinations.
B48: (f) Real price changes are calculated by deducting the inflation rate from nominal price changes.
B49: (g) Expected average wage change for ActewAGL's next revenue determination period i.e. from 2019/20 to 2023/24 inclusive.
B50: Average inflation is calculated as a geometric mean of Reserve Bank's inflation forecasts for the next two years and assuming an inflation of 2.5% (the mid-point of the bank's 2 to 3 per cent inflation target)
B51: for the next eight years. This methodology has been adopted by the AER in their recent revenue determinations.
